[Event "Titled Tuesday Blitz December 7 2021"]
[White "Gevorgyan, Maria"]
[Black "Adewumi, Tanitoluwa"]
[WhiteFideId "13300270"]
[BlackFideId "30966396"]
[WhiteElo "2210"]
[BlackElo "2559"]
[Result "1-0"]
[Round "10"]
[TimeControl "180+1"]
[Date "2021.12.07"]
[WhiteClock "0:00:04"]
[BlackClock "0:00:06"]

1. e4 {[%clk 0:03:00]}  c6 {[%clk 0:02:56]} 2. d4 {[%clk 0:02:59]}  d5 {[%clk 0:02:56]} 3. e5 {[%clk 0:02:52]}  c5 {[%clk 0:02:49]} 4. dxc5 {[%clk 0:02:50]}  Nc6 {[%clk 0:02:43]} 5. Bb5 {[%clk 0:02:49]}  e6 {[%clk 0:02:16]} 6. b4 {[%clk 0:02:39]}  a5 {[%clk 0:02:15]} 7. c3 {[%clk 0:02:38]}  Ne7 {[%clk 0:02:12]} 8. Bd2 {[%clk 0:02:27]}  Ng6 {[%clk 0:01:24]} 9. Nf3 {[%clk 0:02:18]}  Qc7 {[%clk 0:01:21]} 10. Qe2 {[%clk 0:02:11]}  Bd7 {[%clk 0:01:11]} 11. Bxc6 {[%clk 0:02:07]}  Bxc6 {[%clk 0:01:07]} 12. O-O {[%clk 0:02:04]}  Ba4 {[%clk 0:00:53]} 13. a3 {[%clk 0:01:59]}  b6 {[%clk 0:00:47]} 14. cxb6 {[%clk 0:01:58]}  Qxb6 {[%clk 0:00:46]} 15. Be3 {[%clk 0:01:56]}  Qb5 {[%clk 0:00:45]} 16. Qd2 {[%clk 0:01:32]}  Qc4 {[%clk 0:00:40]} 17. Bd4 {[%clk 0:01:26]}  Bb5 {[%clk 0:00:34]} 18. Re1 {[%clk 0:01:25]}  axb4 {[%clk 0:00:32]} 19. cxb4 {[%clk 0:01:20]}  Be7 {[%clk 0:00:19]} 20. Nc3 {[%clk 0:01:16]}  Bd7 {[%clk 0:00:17]} 21. Ne2 {[%clk 0:01:13]}  O-O {[%clk 0:00:17]} 22. Rec1 {[%clk 0:01:12]}  Qa6 {[%clk 0:00:15]} 23. Ng3 {[%clk 0:01:08]}  Bb5 {[%clk 0:00:12]} 24. Nh5 {[%clk 0:01:07]}  Rfc8 {[%clk 0:00:11]} 25. Ng5 {[%clk 0:01:03]}  Bd3 {[%clk 0:00:07]} 26. Nh3 {[%clk 0:00:54]}  Bf5 {[%clk 0:00:06]} 27. N5f4 {[%clk 0:00:50]}  Nxf4 {[%clk 0:00:04]} 28. Nxf4 {[%clk 0:00:50]}  Bg5 {[%clk 0:00:04]} 29. Be3 {[%clk 0:00:50]}  Bxf4 {[%clk 0:00:04]} 30. Bxf4 {[%clk 0:00:50]}  Rc4 {[%clk 0:00:05]} 31. Be3 {[%clk 0:00:49]}  Rac8 {[%clk 0:00:04]} 32. Bc5 {[%clk 0:00:49]}  Rxc1+ {[%clk 0:00:02]} 33. Qxc1 {[%clk 0:00:49]}  Qd3 {[%clk 0:00:02]} 34. a4 {[%clk 0:00:48]}  Qb3 {[%clk 0:00:02]} 35. a5 {[%clk 0:00:46]}  d4 {[%clk 0:00:02]} 36. a6 {[%clk 0:00:46]}  d3 {[%clk 0:00:01]} 37. a7 {[%clk 0:00:46]}  Qd5 {[%clk 0:00:02]} 38. Qd2 {[%clk 0:00:43]}  Ra8 {[%clk 0:00:02]} 39. f3 {[%clk 0:00:39]}  h6 {[%clk 0:00:02]} 40. Rc1 {[%clk 0:00:32]}  Bg6 {[%clk 0:00:02]} 41. b5 {[%clk 0:00:32]}  Qxe5 {[%clk 0:00:02]} 42. b6 {[%clk 0:00:32]}  Qd5 {[%clk 0:00:02]} 43. Bf2 {[%clk 0:00:28]}  Qb7 {[%clk 0:00:02]} 44. Qb4 {[%clk 0:00:28]}  Rd8 {[%clk 0:00:01]} 45. Rc7 {[%clk 0:00:20]}  Qa6 {[%clk 0:00:01]} 46. b7 {[%clk 0:00:12]}  d2 {[%clk 0:00:02]} 47. Qxd2 {[%clk 0:00:09]}  Rxd2 {[%clk 0:00:02]} 48. b8=Q+ {[%clk 0:00:08]}  Kh7 {[%clk 0:00:03]} 49. Be3 {[%clk 0:00:04]}  Rd1+ {[%clk 0:00:03]} 50. Kf2 {[%clk 0:00:04]}  Qf1+ {[%clk 0:00:04]} 51. Kg3 {[%clk 0:00:05]}  Qe1+ {[%clk 0:00:05]} 52. Bf2 {[%clk 0:00:05]}  Qe5+ {[%clk 0:00:06]} 53. Kh3 {[%clk 0:00:06]}  Bf5+ {[%clk 0:00:06]} 54. g4 {[%clk 0:00:06]}  Rd3 {[%clk 0:00:06]} 55. Bg3 {[%clk 0:00:05]}  Rxf3 {[%clk 0:00:06]} 56. gxf5 {[%clk 0:00:05]}  Qxf5+ {[%clk 0:00:06]} 57. Kg2 {[%clk 0:00:05]}  Qe4 {[%clk 0:00:07]} 58. a8=Q {[%clk 0:00:05]}  Qe2+ {[%clk 0:00:06]} 59. Kh3 {[%clk 0:00:04]}  Qf1+ {[%clk 0:00:07]} 60. Kg4 {[%clk 0:00:04]}  Rxg3+ {[%clk 0:00:05]} 61. Kxg3 {[%clk 0:00:04]}  Qg1+ {[%clk 0:00:05]} 62. Qg2 {[%clk 0:00:03]}  Qe3+ {[%clk 0:00:05]} 63. Qf3 {[%clk 0:00:03]}  Qg5+ {[%clk 0:00:05]} 64. Kh3 {[%clk 0:00:04]}  f5 {[%clk 0:00:05]} 65. Rc8 {[%clk 0:00:04]}  Qd2 {[%clk 0:00:04]} 66. Rh8+ {[%clk 0:00:04]}  Kg6 {[%clk 0:00:05]} 67. Qe8+ {[%clk 0:00:04]}  Kf6 {[%clk 0:00:05]} 68. Rf8+ {[%clk 0:00:04]}  Ke5 {[%clk 0:00:05]} 69. Qb5+ {[%clk 0:00:04]}  Kd6 {[%clk 0:00:05]} 70. Rd8+ {[%clk 0:00:04]}  Ke7 {[%clk 0:00:06]} 71. Rxd2 {[%clk 0:00:04]} 1-0


[Site "https://www.chess.com"]

[Event "Titled Tuesday Blitz December 7 2021"]
[White "Grineva, Marianna"]
[Black "Ljukin, Sergei"]
[WhiteFideId "14102013"]
[BlackFideId "14102200"]
[WhiteElo "1953"]
[BlackElo "2311"]
[Result "0-1"]
[Round "10"]
[TimeControl "180+1"]
[Date "2021.12.07"]
[WhiteClock "0:00:01"]
[BlackClock "0:00:17"]

1. e4 {[%clk 0:03:00]}  e6 {[%clk 0:02:56]} 2. d4 {[%clk 0:02:59]}  d5 {[%clk 0:02:56]} 3. Nd2 {[%clk 0:02:58]}  Nf6 {[%clk 0:02:56]} 4. e5 {[%clk 0:02:51]}  Nfd7 {[%clk 0:02:56]} 5. Bd3 {[%clk 0:02:51]}  c5 {[%clk 0:02:56]} 6. c3 {[%clk 0:02:51]}  Nc6 {[%clk 0:02:57]} 7. Ne2 {[%clk 0:02:51]}  cxd4 {[%clk 0:02:57]} 8. cxd4 {[%clk 0:02:51]}  f6 {[%clk 0:02:58]} 9. exf6 {[%clk 0:02:51]}  Qxf6 {[%clk 0:02:58]} 10. Nf3 {[%clk 0:02:43]}  h6 {[%clk 0:02:58]} 11. O-O {[%clk 0:02:42]}  Bd6 {[%clk 0:02:59]} 12. Ng3 {[%clk 0:02:35]}  O-O {[%clk 0:02:59]} 13. Nh5 {[%clk 0:02:31]}  Qf7 {[%clk 0:02:56]} 14. Nh4 {[%clk 0:02:28]}  Rd8 {[%clk 0:02:32]} 15. Bg6 {[%clk 0:02:17]}  Qe7 {[%clk 0:02:30]} 16. g3 {[%clk 0:02:12]}  Nf8 {[%clk 0:02:27]} 17. Bc2 {[%clk 0:01:58]}  Qf7 {[%clk 0:02:24]} 18. a3 {[%clk 0:01:48]}  Nxd4 {[%clk 0:02:18]} 19. Qxd4 {[%clk 0:01:43]}  Qxh5 {[%clk 0:02:18]} 20. Qd3 {[%clk 0:01:32]}  Bd7 {[%clk 0:02:11]} 21. Bd2 {[%clk 0:01:24]}  Bc6 {[%clk 0:02:07]} 22. Rae1 {[%clk 0:01:20]}  e5 {[%clk 0:02:01]} 23. Bb4 {[%clk 0:01:12]}  e4 {[%clk 0:01:54]} 24. Qb3 {[%clk 0:01:04]}  Bxb4 {[%clk 0:01:42]} 25. Qxb4 {[%clk 0:01:03]}  Qe5 {[%clk 0:01:27]} 26. Bb3 {[%clk 0:00:55]}  Kh8 {[%clk 0:01:21]} 27. Qxf8+ {[%clk 0:00:49]}  Rxf8 {[%clk 0:01:18]} 28. Ng6+ {[%clk 0:00:49]}  Kh7 {[%clk 0:01:17]} 29. Nxe5 {[%clk 0:00:50]}  Rae8 {[%clk 0:01:11]} 30. Nxc6 {[%clk 0:00:48]}  bxc6 {[%clk 0:01:11]} 31. Ba4 {[%clk 0:00:48]}  Rc8 {[%clk 0:01:10]} 32. Rc1 {[%clk 0:00:48]}  c5 {[%clk 0:01:09]} 33. Rfd1 {[%clk 0:00:41]}  d4 {[%clk 0:00:58]} 34. Rc4 {[%clk 0:00:39]}  Rb8 {[%clk 0:00:55]} 35. b4 {[%clk 0:00:22]}  cxb4 {[%clk 0:00:54]} 36. axb4 {[%clk 0:00:23]}  e3 {[%clk 0:00:45]} 37. fxe3 {[%clk 0:00:21]}  dxe3 {[%clk 0:00:45]} 38. Re1 {[%clk 0:00:20]}  Rf2 {[%clk 0:00:35]} 39. Rxe3 {[%clk 0:00:18]}  Rb2 {[%clk 0:00:35]} 40. Rb3 {[%clk 0:00:16]}  Ra2 {[%clk 0:00:32]} 41. Bc6 {[%clk 0:00:15]}  Rd8 {[%clk 0:00:30]} 42. Be4+ {[%clk 0:00:14]}  Kg8 {[%clk 0:00:29]} 43. Rc2 {[%clk 0:00:14]}  Rd1+ {[%clk 0:00:27]} 44. Kg2 {[%clk 0:00:06]}  Rxc2+ {[%clk 0:00:28]} 45. Bxc2 {[%clk 0:00:05]}  Rd2+ {[%clk 0:00:28]} 46. Kh3 {[%clk 0:00:06]}  Rxc2 {[%clk 0:00:29]} 47. Ra3 {[%clk 0:00:05]}  Rc7 {[%clk 0:00:29]} 48. Ra6 {[%clk 0:00:06]}  Rb7 {[%clk 0:00:29]} 49. Kg2 {[%clk 0:00:04]}  Kf7 {[%clk 0:00:29]} 50. Kf3 {[%clk 0:00:04]}  Ke7 {[%clk 0:00:29]} 51. h4 {[%clk 0:00:04]}  Kd7 {[%clk 0:00:29]} 52. Rg6 {[%clk 0:00:04]}  Ke8 {[%clk 0:00:26]} 53. Re6+ {[%clk 0:00:04]}  Kf7 {[%clk 0:00:24]} 54. Re4 {[%clk 0:00:04]}  Kf6 {[%clk 0:00:23]} 55. g4 {[%clk 0:00:03]}  Rb5 {[%clk 0:00:22]} 56. Rc4 {[%clk 0:00:02]}  Rb7 {[%clk 0:00:19]} 57. Kf4 {[%clk 0:00:01]}  Rd7 {[%clk 0:00:17]} 58. Rc6+ {[%clk 0:00:01]}  Kf7 {[%clk 0:00:17]} 0-1


[Site "https://www.chess.com"]

[Event "Titled Tuesday Blitz December 7 2021"]
[White "Gubsky, Egor"]
[Black "Gunduz, Umut Erdem"]
[WhiteFideId "4194055"]
[BlackFideId "6381383"]
[WhiteElo "2258"]
[BlackElo "2096"]
[Result "0-1"]
[Round "10"]
[TimeControl "180+1"]
[Date "2021.12.07"]
[WhiteClock "0:00:02"]
[BlackClock "0:00:18"]

1. d4 {[%clk 0:01:23]}  Nf6 {[%clk 0:02:58]} 2. c4 {[%clk 0:01:23]}  e6 {[%clk 0:02:56]} 3. Nf3 {[%clk 0:01:23]}  c5 {[%clk 0:02:45]} 4. d5 {[%clk 0:01:23]}  d6 {[%clk 0:02:42]} 5. Nc3 {[%clk 0:01:22]}  exd5 {[%clk 0:02:40]} 6. cxd5 {[%clk 0:01:23]}  g6 {[%clk 0:02:39]} 7. Bf4 {[%clk 0:01:23]}  a6 {[%clk 0:02:38]} 8. a4 {[%clk 0:01:23]}  Bg7 {[%clk 0:02:38]} 9. h3 {[%clk 0:01:24]}  O-O {[%clk 0:02:38]} 10. e3 {[%clk 0:01:24]}  Re8 {[%clk 0:02:36]} 11. Be2 {[%clk 0:01:24]}  Ne4 {[%clk 0:02:36]} 12. Rc1 {[%clk 0:01:15]}  Nd7 {[%clk 0:02:33]} 13. Nxe4 {[%clk 0:01:12]}  Rxe4 {[%clk 0:02:34]} 14. Bxd6 {[%clk 0:01:12]}  Bxb2 {[%clk 0:02:29]} 15. Rc2 {[%clk 0:01:09]}  Qf6 {[%clk 0:02:18]} 16. O-O {[%clk 0:01:05]}  Ba3 {[%clk 0:02:10]} 17. Bf4 {[%clk 0:01:01]}  Rxa4 {[%clk 0:02:05]} 18. d6 {[%clk 0:00:49]}  b5 {[%clk 0:02:02]} 19. Qd5 {[%clk 0:00:46]}  Rb8 {[%clk 0:02:00]} 20. Qc6 {[%clk 0:00:44]}  Qd8 {[%clk 0:01:29]} 21. Bg5 {[%clk 0:00:11]}  f6 {[%clk 0:01:18]} 22. Qd5+ {[%clk 0:00:07]}  Kg7 {[%clk 0:01:16]} 23. Bf4 {[%clk 0:00:06]}  Bb7 {[%clk 0:01:16]} 24. Qe6 {[%clk 0:00:06]}  Qe8 {[%clk 0:01:14]} 25. Qg4 {[%clk 0:00:07]}  Ne5 {[%clk 0:01:08]} 26. Qg3 {[%clk 0:00:07]}  Nxf3+ {[%clk 0:01:04]} 27. Bxf3 {[%clk 0:00:08]}  Bxf3 {[%clk 0:01:04]} 28. Qxf3 {[%clk 0:00:08]}  Qd7 {[%clk 0:01:01]} 29. Rd1 {[%clk 0:00:09]}  c4 {[%clk 0:00:56]} 30. Qg3 {[%clk 0:00:07]}  Rb4 {[%clk 0:00:42]} 31. Qh4 {[%clk 0:00:07]}  Rb2 {[%clk 0:00:35]} 32. Rxb2 {[%clk 0:00:06]}  Bxb2 {[%clk 0:00:36]} 33. Qh6+ {[%clk 0:00:06]}  Kg8 {[%clk 0:00:36]} 34. Rd5 {[%clk 0:00:07]}  c3 {[%clk 0:00:35]} 35. Rc5 {[%clk 0:00:07]}  Rc8 {[%clk 0:00:32]} 36. Rc7 {[%clk 0:00:03]}  Rxc7 {[%clk 0:00:32]} 37. dxc7 {[%clk 0:00:04]}  c2 {[%clk 0:00:32]} 38. e4 {[%clk 0:00:04]}  Be5 {[%clk 0:00:21]} 39. Bc1 {[%clk 0:00:04]}  Qxc7 {[%clk 0:00:21]} 40. g3 {[%clk 0:00:03]}  b4 {[%clk 0:00:21]} 41. Qe3 {[%clk 0:00:03]}  Qc4 {[%clk 0:00:19]} 42. Qb6 {[%clk 0:00:02]}  b3 {[%clk 0:00:18]} 0-1


[Site "https://www.chess.com"]

[Event "Titled Tuesday Blitz December 7 2021"]
[White "Harshavardhan G B"]
[Black "Garagulya, Konstantin"]
[WhiteFideId "25059009"]
[BlackFideId "4128931"]
[WhiteElo "1825"]
[BlackElo "2329"]
[Result "1-0"]
[Round "10"]
[TimeControl "180+1"]
[Date "2021.12.07"]
[WhiteClock "0:01:11"]
[BlackClock "0:00:11"]

1. Nf3 {[%clk 0:02:59]}  Nf6 {[%clk 0:02:49]} 2. c4 {[%clk 0:02:57]}  e6 {[%clk 0:02:49]} 3. g3 {[%clk 0:02:56]}  d5 {[%clk 0:02:50]} 4. Bg2 {[%clk 0:02:56]}  Nbd7 {[%clk 0:02:49]} 5. O-O {[%clk 0:02:56]}  a6 {[%clk 0:02:49]} 6. Nc3 {[%clk 0:02:56]}  dxc4 {[%clk 0:02:48]} 7. Qa4 {[%clk 0:02:53]}  Rb8 {[%clk 0:02:44]} 8. Qxc4 {[%clk 0:02:52]}  b5 {[%clk 0:02:44]} 9. Qb3 {[%clk 0:02:52]}  Bb7 {[%clk 0:02:42]} 10. d3 {[%clk 0:02:51]}  Bd6 {[%clk 0:02:39]} 11. a4 {[%clk 0:02:49]}  Nc5 {[%clk 0:02:37]} 12. Qc2 {[%clk 0:02:49]}  b4 {[%clk 0:02:35]} 13. Nb1 {[%clk 0:02:48]}  a5 {[%clk 0:02:34]} 14. b3 {[%clk 0:02:48]}  O-O {[%clk 0:02:33]} 15. Nbd2 {[%clk 0:02:48]}  Bd5 {[%clk 0:02:29]} 16. Bb2 {[%clk 0:02:47]}  Bb7 {[%clk 0:02:01]} 17. Nc4 {[%clk 0:02:45]}  Ra8 {[%clk 0:02:01]} 18. e4 {[%clk 0:02:43]}  Nfd7 {[%clk 0:01:53]} 19. Rfe1 {[%clk 0:02:35]}  Be7 {[%clk 0:01:51]} 20. d4 {[%clk 0:02:33]}  Na6 {[%clk 0:01:51]} 21. Rad1 {[%clk 0:02:32]}  Nab8 {[%clk 0:01:50]} 22. d5 {[%clk 0:02:32]}  exd5 {[%clk 0:01:49]} 23. exd5 {[%clk 0:02:33]}  Bf6 {[%clk 0:01:48]} 24. Bc1 {[%clk 0:02:26]}  Nb6 {[%clk 0:01:29]} 25. Nxb6 {[%clk 0:02:06]}  cxb6 {[%clk 0:01:30]} 26. Nd4 {[%clk 0:02:07]}  Na6 {[%clk 0:01:22]} 27. Nc6 {[%clk 0:01:56]}  Qd7 {[%clk 0:01:22]} 28. Be4 {[%clk 0:01:50]}  g6 {[%clk 0:01:15]} 29. Bh6 {[%clk 0:01:48]}  Rfe8 {[%clk 0:01:08]} 30. Bg2 {[%clk 0:01:44]}  Nc5 {[%clk 0:01:02]} 31. Be3 {[%clk 0:01:42]}  Bc3 {[%clk 0:00:51]} 32. Bd2 {[%clk 0:01:41]}  Bxd2 {[%clk 0:00:32]} 33. Qxd2 {[%clk 0:01:34]}  Nxb3 {[%clk 0:00:30]} 34. Qg5 {[%clk 0:01:29]}  Nc5 {[%clk 0:00:20]} 35. Qf6 {[%clk 0:01:23]}  Bxc6 {[%clk 0:00:15]} 36. dxc6 {[%clk 0:01:22]}  Qc7 {[%clk 0:00:15]} 37. h4 {[%clk 0:01:16]}  h5 {[%clk 0:00:14]} 38. Bd5 {[%clk 0:01:14]}  b3 {[%clk 0:00:12]} 39. Qxg6+ {[%clk 0:01:14]}  Kf8 {[%clk 0:00:12]} 40. Qh6+ {[%clk 0:01:14]}  Kg8 {[%clk 0:00:11]} 41. Qg5+ {[%clk 0:01:14]}  Kf8 {[%clk 0:00:12]} 42. Qxh5 {[%clk 0:01:12]}  b2 {[%clk 0:00:11]} 43. Qh8# {[%clk 0:01:11]} 1-0


[Site "https://www.chess.com"]

[Event "Titled Tuesday Blitz December 7 2021"]
[White "Hjartarson, Johann"]
[Black "Abdilkhair, Abilmansur"]
[WhiteFideId "2300044"]
[BlackFideId "13716417"]
[WhiteElo "2502"]
[BlackElo "2063"]
[Result "1/2-1/2"]
[Round "10"]
[TimeControl "180+1"]
[Date "2021.12.07"]
[WhiteClock "0:00:14"]
[BlackClock "0:00:03"]

1. Nf3 {[%clk 0:03:00]}  d5 {[%clk 0:02:56]} 2. g3 {[%clk 0:03:00]}  Bg4 {[%clk 0:02:55]} 3. Bg2 {[%clk 0:03:00]}  Nd7 {[%clk 0:02:55]} 4. c4 {[%clk 0:02:57]}  dxc4 {[%clk 0:02:53]} 5. Na3 {[%clk 0:02:56]}  c6 {[%clk 0:02:29]} 6. Nxc4 {[%clk 0:02:55]}  Ngf6 {[%clk 0:02:30]} 7. O-O {[%clk 0:02:53]}  e6 {[%clk 0:02:26]} 8. b3 {[%clk 0:02:46]}  Be7 {[%clk 0:02:18]} 9. Bb2 {[%clk 0:02:46]}  O-O {[%clk 0:02:19]} 10. d4 {[%clk 0:02:43]}  a5 {[%clk 0:02:18]} 11. a3 {[%clk 0:02:39]}  Qc7 {[%clk 0:02:05]} 12. Re1 {[%clk 0:02:36]}  Rfd8 {[%clk 0:02:03]} 13. Qc2 {[%clk 0:02:32]}  c5 {[%clk 0:01:22]} 14. Nce5 {[%clk 0:02:28]}  Bh5 {[%clk 0:01:17]} 15. Rac1 {[%clk 0:02:23]}  Rac8 {[%clk 0:01:14]} 16. h3 {[%clk 0:02:17]}  Qb8 {[%clk 0:00:58]} 17. Nxd7 {[%clk 0:01:43]}  Nxd7 {[%clk 0:00:52]} 18. Qb1 {[%clk 0:01:34]}  a4 {[%clk 0:00:37]} 19. bxa4 {[%clk 0:01:27]}  Qa7 {[%clk 0:00:29]} 20. dxc5 {[%clk 0:01:17]}  Nxc5 {[%clk 0:00:28]} 21. Ne5 {[%clk 0:00:41]}  Nxa4 {[%clk 0:00:23]} 22. Rxc8 {[%clk 0:00:33]}  Rxc8 {[%clk 0:00:24]} 23. g4 {[%clk 0:00:33]}  Bg6 {[%clk 0:00:19]} 24. Nxg6 {[%clk 0:00:33]}  hxg6 {[%clk 0:00:20]} 25. Be5 {[%clk 0:00:27]}  Bxa3 {[%clk 0:00:11]} 26. Qxb7 {[%clk 0:00:25]}  Qxb7 {[%clk 0:00:07]} 27. Bxb7 {[%clk 0:00:25]}  Rc2 {[%clk 0:00:08]} 28. Ra1 {[%clk 0:00:21]}  Bb2 {[%clk 0:00:07]} 29. Bxb2 {[%clk 0:00:16]}  Rxb2 {[%clk 0:00:03]} 30. Rxa4 {[%clk 0:00:14]}  Rxb7 {[%clk 0:00:03]} 31. Kg2 {[%clk 0:00:14]} 1/2-1/2


[Site "https://www.chess.com"]

[Event "Titled Tuesday Blitz December 7 2021"]
[White "Juhasz, Agoston"]
[Black "Elissalt Cardenas, Hector"]
[WhiteFideId "778346"]
[BlackFideId "3500632"]
[WhiteElo "2211"]
[BlackElo "2208"]
[Result "0-1"]
[Round "10"]
[TimeControl "180+1"]
[Date "2021.12.07"]
[WhiteClock "0:02:11"]
[BlackClock "0:01:59"]

1. e4 {[%clk 0:02:50]}  c5 {[%clk 0:02:58]} 2. Nc3 {[%clk 0:02:46]}  Nc6 {[%clk 0:02:50]} 3. f4 {[%clk 0:02:40]}  g6 {[%clk 0:02:47]} 4. Nf3 {[%clk 0:02:39]}  Bg7 {[%clk 0:02:45]} 5. Bc4 {[%clk 0:02:38]}  d6 {[%clk 0:02:42]} 6. d3 {[%clk 0:02:35]}  e6 {[%clk 0:02:38]} 7. O-O {[%clk 0:02:35]}  Nge7 {[%clk 0:02:34]} 8. Qe1 {[%clk 0:02:35]}  O-O {[%clk 0:02:30]} 9. Qh4 {[%clk 0:02:31]}  d5 {[%clk 0:02:19]} 10. Bb3 {[%clk 0:02:22]}  Nd4 {[%clk 0:02:17]} 11. Nxd4 {[%clk 0:02:15]}  cxd4 {[%clk 0:02:09]} 12. Nd1 {[%clk 0:02:12]}  dxe4 {[%clk 0:02:06]} 13. dxe4 {[%clk 0:02:11]}  Nc6 {[%clk 0:02:00]} 14. Nf2 {[%clk 0:02:11]}  Qxh4 {[%clk 0:01:59]} 0-1


[Site "https://www.chess.com"]

[Event "Titled Tuesday Blitz December 7 2021"]
[White "Kim, Sergey"]
[Black "Seletsky, Grigory"]
[WhiteFideId "13700570"]
[BlackFideId "14112191"]
[WhiteElo "2580"]
[BlackElo "2492"]
[Result "1/2-1/2"]
[Round "10"]
[TimeControl "180+1"]
[Date "2021.12.07"]
[WhiteClock "0:00:01"]
[BlackClock "0:00:04"]

1. d4 {[%clk 0:03:00]}  Nf6 {[%clk 0:02:58]} 2. c4 {[%clk 0:03:00]}  e6 {[%clk 0:02:58]} 3. Nc3 {[%clk 0:03:01]}  Bb4 {[%clk 0:02:57]} 4. Qc2 {[%clk 0:03:01]}  d5 {[%clk 0:02:56]} 5. a3 {[%clk 0:03:01]}  Be7 {[%clk 0:02:55]} 6. Nf3 {[%clk 0:03:00]}  O-O {[%clk 0:02:54]} 7. Bg5 {[%clk 0:02:50]}  Nbd7 {[%clk 0:02:49]} 8. e3 {[%clk 0:02:49]}  b6 {[%clk 0:02:47]} 9. cxd5 {[%clk 0:02:48]}  exd5 {[%clk 0:02:46]} 10. Bd3 {[%clk 0:02:47]}  Bb7 {[%clk 0:02:44]} 11. O-O {[%clk 0:02:46]}  h6 {[%clk 0:02:43]} 12. Bh4 {[%clk 0:02:43]}  Re8 {[%clk 0:02:41]} 13. Ne5 {[%clk 0:02:26]}  Nxe5 {[%clk 0:02:38]} 14. dxe5 {[%clk 0:02:26]}  Nd7 {[%clk 0:02:37]} 15. Bg3 {[%clk 0:02:25]}  Nc5 {[%clk 0:02:32]} 16. Bf5 {[%clk 0:02:25]}  c6 {[%clk 0:02:26]} 17. Rad1 {[%clk 0:02:23]}  Bc8 {[%clk 0:02:14]} 18. Bh7+ {[%clk 0:02:09]}  Kh8 {[%clk 0:02:14]} 19. b4 {[%clk 0:02:09]}  Ne6 {[%clk 0:02:10]} 20. Bf5 {[%clk 0:02:04]}  Ng5 {[%clk 0:02:02]} 21. f4 {[%clk 0:02:01]}  Bxf5 {[%clk 0:01:53]} 22. Qxf5 {[%clk 0:01:59]}  g6 {[%clk 0:01:53]} 23. Qg4 {[%clk 0:01:44]}  h5 {[%clk 0:01:51]} 24. Qe2 {[%clk 0:01:42]}  Nh7 {[%clk 0:01:50]} 25. f5 {[%clk 0:01:40]}  Bg5 {[%clk 0:01:44]} 26. e6 {[%clk 0:01:36]}  Qe7 {[%clk 0:01:41]} 27. e4 {[%clk 0:01:31]}  Bf6 {[%clk 0:01:19]} 28. e5 {[%clk 0:01:15]}  Bg5 {[%clk 0:01:17]} 29. exf7 {[%clk 0:01:07]}  Qxf7 {[%clk 0:01:14]} 30. e6 {[%clk 0:01:06]}  Qg7 {[%clk 0:01:07]} 31. Be5 {[%clk 0:00:56]}  Bf6 {[%clk 0:01:07]} 32. Bxf6 {[%clk 0:00:55]}  Qxf6 {[%clk 0:01:04]} 33. fxg6 {[%clk 0:00:35]}  Qxg6 {[%clk 0:01:03]} 34. e7 {[%clk 0:00:31]}  Qg7 {[%clk 0:00:59]} 35. Qxh5 {[%clk 0:00:24]}  Rxe7 {[%clk 0:00:58]} 36. Ne2 {[%clk 0:00:20]}  Rg8 {[%clk 0:00:56]} 37. Ng3 {[%clk 0:00:20]}  Re5 {[%clk 0:00:54]} 38. Qh4 {[%clk 0:00:16]}  Qe7 {[%clk 0:00:46]} 39. Qh6 {[%clk 0:00:15]}  Re6 {[%clk 0:00:42]} 40. Qh5 {[%clk 0:00:14]}  Qg5 {[%clk 0:00:39]} 41. Qf3 {[%clk 0:00:12]}  Re3 {[%clk 0:00:36]} 42. Qf7 {[%clk 0:00:11]}  Rxa3 {[%clk 0:00:28]} 43. b5 {[%clk 0:00:10]}  cxb5 {[%clk 0:00:22]} 44. Rxd5 {[%clk 0:00:09]}  Qg7 {[%clk 0:00:22]} 45. Qf5 {[%clk 0:00:08]}  Ra1 {[%clk 0:00:21]} 46. Rd7 {[%clk 0:00:06]}  Rxf1+ {[%clk 0:00:18]} 47. Kxf1 {[%clk 0:00:06]}  Rf8 {[%clk 0:00:15]} 48. Rxg7 {[%clk 0:00:06]}  Kxg7 {[%clk 0:00:15]} 49. Nh5+ {[%clk 0:00:05]}  Kg8 {[%clk 0:00:11]} 50. Ng3 {[%clk 0:00:04]}  Rxf5+ {[%clk 0:00:11]} 51. Nxf5 {[%clk 0:00:05]}  Kf7 {[%clk 0:00:10]} 52. Ke2 {[%clk 0:00:05]}  Kf6 {[%clk 0:00:07]} 53. Nd4 {[%clk 0:00:05]}  a6 {[%clk 0:00:06]} 54. Kd3 {[%clk 0:00:05]}  Ke5 {[%clk 0:00:06]} 55. Nf3+ {[%clk 0:00:04]}  Kd5 {[%clk 0:00:06]} 56. g4 {[%clk 0:00:04]}  Nf6 {[%clk 0:00:06]} 57. g5 {[%clk 0:00:04]}  Nh5 {[%clk 0:00:06]} 58. g6 {[%clk 0:00:02]}  Ke6 {[%clk 0:00:05]} 59. Nd4+ {[%clk 0:00:01]}  Kf6 {[%clk 0:00:05]} 60. Ke4 {[%clk 0:00:01]}  Kxg6 {[%clk 0:00:05]} 61. Kd5 {[%clk 0:00:01]}  Kg5 {[%clk 0:00:05]} 62. Kc6 {[%clk 0:00:01]}  Kg4 {[%clk 0:00:04]} 63. Kxb6 {[%clk 0:00:02]}  Kh3 {[%clk 0:00:04]} 64. Kxa6 {[%clk 0:00:01]}  Kxh2 {[%clk 0:00:04]} 65. Kxb5 {[%clk 0:00:01]} 1/2-1/2


[Site "https://www.chess.com"]

[Event "Titled Tuesday Blitz December 7 2021"]
[White "Kislinsky, Alexey"]
[Black "Paravyan, David"]
[WhiteFideId "14108801"]
[BlackFideId "4194985"]
[WhiteElo "2335"]
[BlackElo "2656"]
[Result "1-0"]
[Round "10"]
[TimeControl "180+1"]
[Date "2021.12.07"]
[WhiteClock "0:00:06"]
[BlackClock "0:00:04"]

1. e4 {[%clk 0:03:00]}  e5 {[%clk 0:03:00]} 2. Nc3 {[%clk 0:02:57]}  Nf6 {[%clk 0:02:59]} 3. d4 {[%clk 0:02:57]}  exd4 {[%clk 0:02:58]} 4. Qxd4 {[%clk 0:02:58]}  Nc6 {[%clk 0:02:59]} 5. Qd3 {[%clk 0:02:59]}  Bc5 {[%clk 0:02:59]} 6. Bf4 {[%clk 0:02:58]}  d6 {[%clk 0:02:58]} 7. Qd2 {[%clk 0:02:58]}  O-O {[%clk 0:02:57]} 8. O-O-O {[%clk 0:02:54]}  Ng4 {[%clk 0:02:56]} 9. Nh3 {[%clk 0:02:45]}  Be6 {[%clk 0:02:50]} 10. f3 {[%clk 0:02:41]}  Nge5 {[%clk 0:02:51]} 11. Ng5 {[%clk 0:02:41]}  Bb4 {[%clk 0:02:11]} 12. h4 {[%clk 0:02:29]}  h6 {[%clk 0:02:05]} 13. Nxe6 {[%clk 0:02:21]}  fxe6 {[%clk 0:02:06]} 14. Be3 {[%clk 0:02:16]}  Na5 {[%clk 0:01:55]} 15. Bd4 {[%clk 0:01:58]}  Nec4 {[%clk 0:01:42]} 16. Bxc4 {[%clk 0:01:57]}  Nxc4 {[%clk 0:01:42]} 17. Qe2 {[%clk 0:01:54]}  b5 {[%clk 0:01:22]} 18. Nxb5 {[%clk 0:01:48]}  d5 {[%clk 0:01:23]} 19. a3 {[%clk 0:01:22]}  Qd7 {[%clk 0:01:10]} 20. Nxc7 {[%clk 0:01:04]}  Qxc7 {[%clk 0:00:36]} 21. axb4 {[%clk 0:01:04]}  e5 {[%clk 0:00:36]} 22. Bc5 {[%clk 0:01:01]}  Qc6 {[%clk 0:00:20]} 23. b3 {[%clk 0:00:50]}  Nb6 {[%clk 0:00:05]} 24. exd5 {[%clk 0:00:44]}  Qf6 {[%clk 0:00:02]} 25. Qe4 {[%clk 0:00:34]}  Rfd8 {[%clk 0:00:02]} 26. g4 {[%clk 0:00:34]}  Nd7 {[%clk 0:00:01]} 27. g5 {[%clk 0:00:34]}  hxg5 {[%clk 0:00:02]} 28. hxg5 {[%clk 0:00:35]}  Qxg5+ {[%clk 0:00:02]} 29. Kb2 {[%clk 0:00:33]}  Nf6 {[%clk 0:00:02]} 30. Qc4 {[%clk 0:00:30]}  Kf7 {[%clk 0:00:01]} 31. Rhg1 {[%clk 0:00:25]}  Qf5 {[%clk 0:00:01]} 32. d6+ {[%clk 0:00:23]}  Ke8 {[%clk 0:00:01]} 33. Rxg7 {[%clk 0:00:20]}  Rd7 {[%clk 0:00:02]} 34. Rdg1 {[%clk 0:00:13]}  Rxg7 {[%clk 0:00:02]} 35. Rxg7 {[%clk 0:00:13]}  Nd7 {[%clk 0:00:02]} 36. Qg8+ {[%clk 0:00:06]}  Nf8 {[%clk 0:00:02]} 37. d7+ {[%clk 0:00:06]}  Kd8 {[%clk 0:00:02]} 38. Bxf8 {[%clk 0:00:05]}  Kc7 {[%clk 0:00:03]} 39. Bd6+ {[%clk 0:00:06]}  Kb6 {[%clk 0:00:02]} 40. Qxa8 {[%clk 0:00:06]}  Qf4 {[%clk 0:00:03]} 41. d8=Q+ {[%clk 0:00:06]}  Kb5 {[%clk 0:00:04]} 42. Qb7# {[%clk 0:00:06]} 1-0


[Site "https://www.chess.com"]